Cogmind - Beta 15 @@@ ROGUE MODE // 2025.07.05 @ 07:01:44 Player: beans Result: Destroyed by 4W-JL1(R) with Subdweller Machine Gun Performance ------------- Evolutions (0) 0 Regions Visited (2) 400 Robots Destroyed (42) 210 Value Destroyed (724) 724 Prototype IDs (0) 0 Alien Tech Used (0) 0 Bonus (0) 0 TOTAL SCORE: 1334 Bonus ------- None Cogmind --------- Core Integrity 0/250 Matter 300/300 Energy 100/100 System Corruption 0% Temperature Cool (0) Movement Walking (330) Ox3 Location -10/Subcaves Parts ------- > --- POWER (1) -------- (None) > --- PROPULSION (2) --- Improved Aluminum Leg > --- UTILITY (2) ------ High-capacity Storage Unit Targeting Computer > --- WEAPON (2) ------- Flail > --- INVENTORY (20) --- Improved Aluminum Leg Peak State ------------ > --- POWER ------------ Light Ion Engine > --- PROPULSION ------- Improved Aluminum Leg Improved Aluminum Leg > --- UTILITY ---------- High-capacity Storage Unit Targeting Computer > --- WEAPON ----------- EM Pulse Gun Flail > --- INVENTORY -------- Light Treads Light Treads Improved Aluminum Leg Improved Aluminum Leg [Rating: 10] Favorites ----------- Power Light Ion Engine Engine Light Ion Engine Propulsion Light Treads Treads Light Treads Leg Improved Aluminum Leg Utility Targeting Computer Storage High-capacity Storage Unit Processor Targeting Computer Weapon EM Pulse Gun Energy Gun EM Pulse Gun Launcher Grenade Launcher Impact Weapon Flail Build | -11 -10 -10 ------- Run | Yrd Mat Sub Slots Evolved . | . . . Power . | . . . Propulsion . | . . . Utility . | . . . Weapon . | . . . Parts Attached 13 | 4 9 . Power 2 | 1 1 . Engine 2 | 1 1 . Core . | . . . Reactor . | . . . Propulsion 5 | 2 3 . Treads 2 | 2 . . Leg 3 | . 3 . Wheel . | . . . Hover . | . . . Flight . | . . . Utility 2 | . 2 . Device . | . . . Storage 1 | . 1 . Processor 1 | . 1 . Hackware . | . . . Protection . | . . . Artifact . | . . . Weapon 4 | 1 3 . Energy Gun 2 | 1 1 . Energy Cannon . | . . . Ballistic Gun . | . . . Ballistic Cannon . | . . . Launcher 1 | . 1 . Special Weapon . | . . . Impact Weapon 1 | . 1 . Slashing Weapon . | . . . Piercing Weapon . | . . . Special Melee Weapon . | . . . Unidentified Prototypes . | . . . Parts Lost 7 | . 4 3 Power 2 | . 1 1 Propulsion 2 | . 1 1 Utility . | . . . Weapon 3 | . 2 1 Highest Loss Streak 2 | . 1 2 To Critical Strikes . | . . . Average Backups . | . . 1 Power . | . . . Propulsion . | . . 1 Utility . | . . . Weapon . | . . . Tool/Special . | . . . Unused Backups 1 | . . 1 Power . | . . . Propulsion 1 | . . 1 Utility . | . . . Weapon . | . . . Tool/Special . | . . . Average Slot Usage (%) 85 | . 86 80 Engine 12 | . 13 4 Treads 21 | . 26 . Leg 6 | . 2 27 Storage 10 | . 9 14 Processor 11 | . 11 14 Energy Gun 15 | . 18 4 Launcher 1 | . 1 . Impact Weapon 5 | . 3 14 Peak Build Rating 10 | 4 10 10 Average Rating 6 | 2 6 8 On Entrance 4 | . 4 10 Naked Turns . | . . . Heaviest Build 47 | 5 47 47 Greatest Support 40 | 40 40 26 Greatest Overweight (x) 3 | . 1 3 Average Overweight (x) . | . . 1 Largest Inventory Capacity 20 | 5 20 20 Average Capacity 16 | 5 15 20 Most Carried 4 | 3 4 1 Average Carried . | . . 1 Final Capacity 20 | 5 20 20 Final Carried 1 | . 1 1 Class Distribution -------------------- 100% | Mutant Dominant Class ---------------- Mutant | -10/Materials Mutant | -10/Subcaves Resources | -11 -10 -10 ----------- Run | Yrd Mat Sub Matter Collected 620 | 211 409 . Remotely . | . . . Salvage Created 1029 | . 882 147 Parts 79 | . 73 6 Haulers Intercepted 2 | . 2 . Recyclers Shooed 3 | . 3 . Parts Field Recycled . | . . . Retrieved Matter . | . . . Parts Self-Destructed 6 | . . 6 Prevented . | . . . Kills | -11 -10 -10 ------- Run | Yrd Mat Sub Combat Hostiles Destroyed 15 | . 12 3 Melee 1 | . . 1 Guns 2 | . 2 . AOE 9 | . 9 . Classes Destroyed 9 | . 8 1 Worker 12 | . 12 . Builder 6 | . 6 . Tunneler 2 | . 2 . Hauler 2 | . 2 . Recycler 2 | . 2 . Watcher 3 | . 3 . Swarmer 5 | . 5 . Grunt 7 | . 7 . Subdweller 3 | . . 3 Best Kill Streak 4 | . 4 2 Combat Bots Only 3 | . 3 2 Max Kills in Single Turn 2 | . 2 1 Gunslinging . | . . . Exploded 2 | . 2 . Melee 1 | . . 1 Uniques/NPCs Destroyed . | . . . Combat | -11 -10 -10 -------- Run | Yrd Mat Sub Hostile Shots Fired 75 | . 54 21 Missed 17 | . 15 2 Hits 58 | . 39 19 Projectile 58 | . 39 19 Critical Strikes 2 | . 1 1 Damage Taken 1020 | . 625 395 Core 251 | . 125 126 Absorbed by Shields . | . . . Core Remaining (%) 100 | 100 . . Volleys Fired 147 | . 147 . Largest 2 | . 2 . Hottest 80 | . 80 . Shots Fired 196 | . 196 . Gun 167 | . 167 . Cannon . | . . . Launcher 29 | . 29 . Special . | . . . Kinetic . | . . . Thermal . | . . . Explosive 29 | . 29 . Electromagnetic 167 | . 167 . Robot Hit Streak 9 | . 9 . Robot Miss Streak 5 | . 5 . Penetration Max . | . . . Secondary Targets . | . . . Shots Hit Robots 63 | . 56 7 Core Hits 41 | . 40 1 Critical Kills . | . . . Critical Parts Destroyed 3 | . 2 1 Critical Strikes 5 | . 4 1 Corrupt 2 | . 2 . Smash 3 | . 2 1 Melee Attacks 19 | . 9 10 Impact 19 | . 9 10 Slashing . | . . . Piercing . | . . . Sneak Attacks 7 | . 7 . Combat Hostiles . | . . . Follow-up Attacks . | . . . Damage Inflicted 2778 | . 2526 252 Guns 714 | . 714 . Cannons . | . . . Explosions 1204 | . 1204 . Melee 860 | . 608 252 Ramming . | . . . Kinetic . | . . . Thermal 216 | . 216 . Explosive 988 | . 988 . Electromagnetic 714 | . 714 . Impact 860 | . 608 252 Slashing . | . . . Piercing . | . . . Highest Corruption . | . . . Average Corruption . | . . . Corruption Purged . | . . . Corruption Blocked . | . . . Overload Shots . | . . . Overflow Damage 511 | . 472 39 Projectiles . | . . . Explosions 74 | . 74 . Melee 437 | . 398 39 Knockbacks 6 | . 3 3 Impact 6 | . 3 3 Kinetic . | . . . Secondary . | . . . Self-Inflicted Damage 247 | . 247 . Shots 4 | . 4 . Rammed . | . . . Targets Rammed . | . . . Kicked . | . . . Crushed . | . . . Highest Temperature 180 | . 180 . Average Temperature 38 | . 38 . Received Heat Transfer 159 | . 147 12 Siege Activations . | . . . Martial Activations . | . . . Shielding Activations . | . . . Robots Disrupted . | . . . Combat Hostiles . | . . . Robots Corrupted 7 | . 5 2 Combat Hostiles 3 | . 1 2 Parts Fried 15 | . 12 3 Impact Corruptions 16 | . 13 3 Robots Melted . | . . . Combat Hostiles . | . . . Parts Melted . | . . . Heat Transferred 150 | . 150 . Parts Sabotaged . | . . . Parts Stolen . | . . . Parts Stripped . | . . . Power Chain Reactions 5 | . 5 . Alert | -11 -10 -10 ------- Run | Yrd Mat Sub Maximum Alert Level 1 | . 1 . Low Security (%) 70 | 100 69 . Level 1 29 | . 30 . Level 2 . | . . . Level 3 . | . . . Level 4 . | . . . Level 5 . | . . . High Security . | . . . Max Security . | . . . Peak Influence 376 | . 376 . Initial . | . . . Average 189 | . 192 . Influence Increases 925 | . 925 . Destroy 0b10 Robot/C 240 | . 240 . Destroy 0b10 Robot/NC 135 | . 135 . Destroy Leader 50 | . 50 . Disable Machine 255 | . 255 . Destroy Structure 245 | . 245 . Influence Decreases 925 | . 717 208 Entered New Map 100 | . . 100 Time Decay 785 | . 677 108 Lost Part 40 | . 40 . Squads Dispatched 1 | . 1 . Investigation 1 | . 1 . Extermination . | . . . Reinforcement . | . . . Assault . | . . . Garrison . | . . . Intercept . | . . . Searches Triggered . | . . . Construction Impeded . | . . . Haulers Reinforced . | . . . Active Scanning Responses . | . . . Cargo Convoy Interrupts . | . . . Stealth | -11 -10 -10 --------- Run | Yrd Mat Sub Distress Signals . | . . . Communications Jammed . | . . . Distress Signals . | . . . Times Spotted 25 | . 21 4 Peak Tracking Total 5 | . 5 2 Tactical Retreats . | . . . Traps | -11 -10 -10 ------- Run | Yrd Mat Sub Traps Triggered . | . . . Indirectly . | . . . Trap Hack Attempts . | . . . Triggered . | . . . Disarmed . | . . . Reprogrammed . | . . . Reused . | . . . Traps Extracted . | . . . Installed . | . . . Triggered . | . . . Machines | -11 -10 -10 ---------- Run | Yrd Mat Sub Machines Disabled 18 | . 18 . Max in Single Turn 2 | . 2 . Machines Repaired . | . . . Machines Dismantled . | . . . Machines Sabotaged . | . . . Overloaded Fab Kills . | . . . Hacking | -11 -10 -10 --------- Run | Yrd Mat Sub Machines Accessed 1 | . . 1 Terminals . | . . . Fabricators . | . . . Repair Stations . | . . . Recycling Units . | . . . Scanalyzers . | . . . Garrison Access . | . . . Total Hacks 5 | . . 5 Successful 5 | . . 5 Failed . | . . . Catastrophic . | . . . Database Lockouts . | . . . Manual . | . . . Terminals . | . . . Fabricators . | . . . Repair Stations . | . . . Recycling Units . | . . . Scanalyzers . | . . . Garrison Access . | . . . Terminal Hacks 5 | . . 5 Record 5 | . . 5 Fabricator Hacks . | . . . Repair Station Hacks . | . . . Recycling Unit Hacks . | . . . Scanalyzer . | . . . Garrison Access Hacks . | . . . Unauthorized Hacks . | . . . Terminals . | . . . Fabricators . | . . . Repair Stations . | . . . Recycling Units . | . . . Scanalyzers . | . . . Garrison Access . | . . . Data Cores Recovered . | . . . Used . | . . . Hacking Detections . | . . . Full Trace Events . | . . . Feedback Events . | . . . Feedback Blocked . | . . . Robot Schematics Acquired . | . . . Robots Built . | . . . Authchips . | . . . Time . | . . . Total Robot Build Rating . | . . . Part Schematics Acquired . | . . . Parts Built . | . . . Authchips . | . . . Time . | . . . Total Part Build Rating . | . . . Parts Repaired . | . . . Time . | . . . Parts Recycled . | . . . Recycled Matter . | . . . Retrieved Matter . | . . . Retrieved Components . | . . . Parts Scanalyzed . | . . . Part Schematics Acquired . | . . . Parts Damaged . | . . . Bothacking | -11 -10 -10 ------------ Run | Yrd Mat Sub Used RIF Installer . | . . . Robots Hacked . | . . . Non-combat . | . . . Combat . | . . . Robot Hacks Applied . | . . . Relay Couplers Released . | . . . Fabnet Peak Effective % . | . . . Robots Rewired . | . . . Allies Hacked . | . . . Hacks Repelled . | . . . Allies | -11 -10 -10 -------- Run | Yrd Mat Sub Total Allies . | . . . Largest Group . | . . . Highest-Rated Group . | . . . Highest-Rated Ally . | . . . Total Orders . | . . . Ally Attacks . | . . . Total Damage . | . . . Kills . | . . . Allies Corrupted . | . . . Allies Melted . | . . . Intel | -11 -10 -10 ------- Run | Yrd Mat Sub Active Infowar (turns) . | . . . Robot Analysis Total . | . . . Derelict Logs Recovered 1 | . . 1 Drone Launches . | . . . Drone Recoveries . | . . . Exploration | -11 -10 -10 ------------- Run | Yrd Mat Sub Turns Passed 4276 | 43 3487 746 Spaces Moved 1651 | 33 1337 281 Core 15 | 15 . . Treads 1236 | 18 1218 . Legs 400 | . 119 281 Wheels . | . . . Hover . | . . . Flight . | . . . Fastest Speed 50 | 50 160 190 Average Speed 204 | 110 209 190 Slowest Speed 330 | 160 240 330 Overloaded Moves . | . . . Propulsion Burnouts . | . . . Robots Hopped . | . . . Potential Cave-ins . | . . . Cave-ins Triggered . | . . . Exploration Rate (%) 42 | 3 99 25 Regions Visited 2 Branch Regions 1 Pre-discovered Areas 1 | . . 1 Known Exits Taken . | . . . Unknown Exits Taken 2 | 1 1 . Scrap Searched . | . . . Spaces Dug . | . . . Terrain Destroyed 252 | . 252 . Melee . | . . . Projectile . | . . . AOE 252 | . 252 . Terrain Rammed . | . . . Walls Destroyed . | . . . Machines Disabled . | . . . Actions | -11 -10 -10 --------- Run | Yrd Mat Sub Total 2331 | 40 1816 475 Wait 486 | . 302 184 Move 1649 | 32 1336 281 Hop . | . . . Pick Up 14 | 4 10 . Fast Attach . | . . . Attach 11 | 4 7 . Detach . | . . . Swap 3 | . 3 . Drop 2 | . 2 . Fire 147 | . 147 . Melee 19 | . 9 10 Ram . | . . . Kick . | . . . Crush . | . . . Escape Stasis . | . . . Rewire . | . . . Trap . | . . . Miscellaneous . | . . . Route ------- -11/Scrapyard -10/Materials (discovered 5 exits: [*Mat x3] / [*Min] / *Sub) -10/Subcaves History --------- Turn | Location | Event 4 | -11/Scrapyard | Discovered new exit (range 16) 44 | -11/Scrapyard | Entered Materials 195 | -10/Materials | Discovered new exit (range 15) 304 | -10/Materials | Build established: Mutant 363 | -10/Materials | Discovered new exit (range 14) 531 | -10/Materials | Discovered new exit (range 16) 1101 | -10/Materials | Discovered new exit (range 7) 2701 | -10/Materials | Discovered new exit (range 15) 3531 | -10/Materials | Entered Subcaves 3782 | -10/Subcaves | Core integrity fell below 50% 3844 | -10/Subcaves | A swath of the cavern ceiling suddenly collapsed 3854 | -10/Subcaves | Ambushed by angry Subdweller bent on revenge 3936 | -10/Subcaves | Learned location of 1 exit from Materials 3996 | -10/Subcaves | Learned location of Zion (-7) 3996 | -10/Subcaves | Met a Zionite searching for "candidates" 4149 | -10/Subcaves | Visited Clippyterm 4155 | -10/Subcaves | Learned Factory trap positions 4155 | -10/Subcaves | Learned 40 Factory zone layouts 4265 | -10/Subcaves | Core integrity fell below 20% 4277 | -10/Subcaves | Destroyed by 4W-JL1(R) with Subdweller Machine Gun Last Messages --------------- two Terminals to improve your odds of success elsewhere. >>Record! "LU-1G1" It looks like you're researching the legendary digger of dangerously deep tunnels, unfortunately it seems not even members of the Boring Crew know what became of that one. 7Y-CY3(R) suffers critical hit (Smash). Destroyed Sub. Monowheel. 7Y-CY3(R) system corrupted by crushing effect. Destroyed Sub. Optics. 7Y-CY3(R) system corrupted by crushing effect. 7Y-CY3(R) knocked back. 7Y-CY3(R) IFF system glitched. 7Y-CY3(R) system terminally corrupted. Disposable Heat Sink fried. Sub. Power Source fried. Imp. Aluminum Leg destroyed. 4W-JL1(R) knocked back. GZ-FGD(u) deconstructs Twisted Machinery. Map ----- +----------------------------------------------------+ | ?????????#"" ## #???#####?## ####?# ##?#### | | ?????????#"""## ## ##??# ### ### ### # | | ?????????####### ### #### ## | | ???????????????# #?# ## | | ???????????????# #?# ## | | ???????????????## #?# ### ##### | | ????????????????##### #?#####???? | | ???????????????????# #######?????????? | | ??????????????????### ##### #???????????????? | | ???????????????#### ## #???# #??????????????? | | ??????????????## ##???# #??????????????? | | ??????????????# #???? ##??????????????? | | ??????????????## ## # #???? ##???????????????? | | ??????????????# #### #?? ????????????????? | | ??????????????## ##?? #??# ????????????????? | | ??????????????## #? #?? ????????????????? | | ??????????????# ## ??# #????????????????? | | ??????????????# # ## ##?###?????????????????? | | ??????????????## ## ##??????????????????????? | | ?????????????## #####???????????????????????? | | ?????????????# ##????????#?????????????????? | | ?????????????### ##?????? #?????????????????? | | ???????????????## ##?### u##????????????????? | | ????????????????# ##" ##???????????????? | | ????????????????###""% """"" ???????????????? | | ??????????????????# ""& @ R## ??????????????????? | | ?????????????# """### #????????????????? | | ??????????????# "" "?# #????????????????? | | ??????????????## """? #????????????????? | | ???????????????## "##? # ##????????????????? | | ????????????????### "???"""## #????????????????? | | ??????????????????# #???# ? #????????????????? | | ??????????????????#?????""" ?? ""???????????????? | | ????????????????????????""" ???###???????????????? | | ????????????????????????"""""????????????????????? | | ???????????????????????????##????????????????????? | | ?????????????????????????????????????????????????? | | ?????????????????????????????????????????????????? | | ?????????????????????????????????????????????????? | | ?????????????????????????????????????????????????? | | ?????????????????????????????????????????????????? | | ?????????????????????????????????????????????????? | | ?????????????????????????????????????????????????? | | ?????????????????????????????????????????????????? | | ?????????????????????????????????????????????????? | | ?????????????????????????????????????????????????? | | ?????????????????????????????????????????????????? | | ?????????????????????????????????????????????????? | | ?????????????????????????????????????????????????? | | ?????????????????????????????????????????????????? | +----------------------------------------------------+ Best States ------------- Heat Dissipation 25 Energy Generation 10 Energy Capacity 125 Matter Stores 300 Matter Capacity 300 Sight Range 16 Terrain Scan Density 10 Evasion (%) 50 Targeting Accuracy 5 Recoil Reduction 2 Item Schematics ----------------- None Robot Schematics ------------------ None Fabricated ------------ Nothing Repaired ---------- Nothing Alien Tech Used ----------------- None Achievements -------------- None Challenges ------------ None Game ------ Seed SmallFieldthrustChainsaw Manual? 0 Play Time 00:21:34 Cumulative 39.5 hours Start 2025.07.04 @ 20:30:07 End 2025.07.05 @ 07:01:44 Sessions 3 Manual Loads 0 Difficulty Rogue Special Mode None Game No. 187 Rogue 187 Adventurer 0 Explorer 0 Win Type - Total 0 Types 0/0/0/0/0/0/0/0/0/0 Lore% 29 Gallery% 24 Achievement% 20 Wizard Run 0 Options --------- Layout 2 ASCII 0 Keyboard 0 Movement Mouse Keybinds 0 Fullscreen 1 Font 24/Smallcaps Map View 50x44 Zoom Use 0% Tactical HUD 0 Map Filters NONE Filters NONE Steam 1 RUN: 55e44d6f-5126-4830-be32-ebe969abb5ac